fUSD/lending_fUSD_20241225
["ID","MTS","AMOUNT","RATE_DAILY","PERIOD"]
[346603369,1735124008896,-538.6,0.00011015,2]
[346603370,1735124008907,-500.0,0.00011015,2]
[346603371,1735124008917,-500.0,0.00011015,2]
[346603372,1735124008927,-670.11,0.00011015,2]
[346603373,1735124008938,-657.2,0.00011015,2]
[346603374,1735124008948,-500.0,0.00011015,2]
[346603375,1735124008958,-500.0,0.00011015,2]
[346603376,1735124008967,-1236.04,0.00011015,2]
[346603377,1735124008978,-672.78,0.00011015,2]
[346603378,1735124008988,-782.37,0.00011016,2]
[346603379,1735124008998,-853.27,0.00011016,2]
[346603380,1735124009008,-500.0,0.00011016,2]
[346603381,1735124009018,-566.1,0.00011016,2]
[346603382,1735124009028,-1123.54,0.00011016,2]
[346603383,1735124009039,-500.0,0.00011016,2]
[346603384,1735124009048,-500.0,0.00011016,2]
[346603385,1735124009059,-500.0,0.00011016,2]
[346603386,1735124009069,-500.0,0.00011016,2]
[346603387,1735124009079,-540.29,0.00011016,2]
[346603388,1735124009090,-500.0,0.00011016,2]
[346603389,1735124009100,-910.07,0.00011016,2]
[346603390,1735124009110,-185.6428193,0.00011016,2]
[346603391,1735124009119,-1034.43,0.00011016,2]
[346603392,1735124009129,-701.77,0.00011016,2]
[346603393,1735124009140,-500.0,0.00011016,2]
[346603394,1735124009149,-500.0,0.00011016,2]
[346603395,1735124009159,-500.0,0.00011016,2]
[346603396,1735124009170,-500.0,0.00011016,2]
[346603397,1735124009179,-593.72,0.00011016,2]
[346603398,1735124009189,-823.23,0.00011016,2]
[346603399,1735124009200,-561.91,0.00011016,2]
[346603400,1735124009210,-803.22,0.00011016,2]
[346603401,1735124009220,-769.08,0.00011016,2]
[346603402,1735124009230,-505.89,0.00011016,2]
[346603403,1735124009240,-185.23289781,0.00011016,2]
[346603404,1735124009250,-519.4,0.00011016,2]
[346603405,1735124009260,-500.0,0.00011016,2]
[346603406,1735124009270,-500.0,0.00011016,2]
[346603407,1735124009280,-1047.69,0.00011016,2]
[346603408,1735124009289,-500.0,0.00011016,2]
[346603409,1735124009299,-795.42,0.00011016,2]
[346603410,1735124009308,-500.0,0.00011016,2]
[346603411,1735124009318,-500.0,0.00011016,2]
[346603412,1735124009328,-791.77,0.00011016,2]
[346603413,1735124009338,-761.95,0.00011016,2]
[346603414,1735124009348,-296.30595053,0.00011016,2]
[346603415,1735124009357,-764.41,0.00011016,2]
[346603416,1735124009367,-185.06902281,0.00011016,2]
[346603417,1735124009376,-668.48,0.00011016,2]
[346603418,1735124009386,-537.41,0.00011016,2]
[346603419,1735124009396,-1164.9,0.00011016,2]
[346603420,1735124009405,-500.0,0.00011016,2]
[346603421,1735124009416,-560.33,0.00011016,2]
[346603422,1735124009428,-500.0,0.00011016,2]
[346603423,1735124009438,-634.6,0.00011016,2]
[346603424,1735124009447,-1047.44,0.00011016,2]
[346603425,1735124009457,-500.0,0.00011016,2]
[346603426,1735124009467,-500.0,0.00011016,2]
[346603427,1735124009476,-1008.99,0.00011016,2]
[346603428,1735124009486,-566.07,0.00011016,2]
[346603429,1735124009497,-1350.23,0.00011016,2]
[346603430,1735124009508,-500.0,0.00011016,2]
[346603431,1735124009518,-500.0,0.00011016,2]
[346603432,1735124009527,-500.0,0.00011017,2]
[346603433,1735124009536,-196449.03631606,0.0001102,7]
[346603434,1735124009546,-648.16566158,0.00011096,2]
[346603435,1735124009556,-709.41,0.00011151,2]
[346603436,1735124009566,-29999.99,0.00011281,2]
[346603437,1735124009575,-500.0,0.00011287,2]
[346603438,1735124009585,-500.0,0.00011287,2]
[346603439,1735124009595,-500.0,0.00011287,2]
[346603440,1735124009604,-629.82,0.00011287,2]
[346603441,1735124009614,-500.0,0.00011287,2]
[346603442,1735124009624,-500.0,0.00011287,2]
[346603443,1735124009634,-500.0,0.00011287,2]
[346603444,1735124009643,-500.0,0.00011287,2]
[346603445,1735124009653,-500.0,0.00011287,2]
[346603446,1735124009663,-500.0,0.00011287,2]
[346603447,1735124009673,-500.0,0.00011287,2]
[346603448,1735124009683,-500.0,0.00011287,2]
[346603449,1735124009692,-641.52,0.00011287,2]
[346603450,1735124009702,-500.0,0.00011287,2]
[346603451,1735124009712,-2052.61,0.00011287,2]
[346603452,1735124009722,-500.0,0.00011287,2]
[346603453,1735124009732,-500.0,0.00011287,2]
[346603454,1735124009742,-724.12,0.00011287,2]
[346603455,1735124009751,-2612.7,0.00011287,2]
[346603456,1735124009762,-2106.94,0.00011287,2]
[346603457,1735124009772,-500.0,0.00011287,2]
[346603458,1735124009782,-500.0,0.00011287,2]
[346603459,1735124009792,-2120.8,0.00011287,2]
[346603460,1735124009802,-500.0,0.00011287,2]
[346603461,1735124009812,-500.0,0.00011287,2]
[346603462,1735124009821,-8111.62,0.00011287,2]
[346603463,1735124009832,-561.14,0.00011287,2]
[346603464,1735124009842,-500.0,0.00011287,2]
[346603465,1735124009852,-328.07367844,0.00011287,2]
[346603466,1735124009862,-13374.8,0.00011287,2]
[346603467,1735124009871,-895.0,0.00011287,2]
[346603468,1735124009881,-500.0,0.00011287,2]
[346603469,1735124009892,-1080.93,0.00011287,2]
[346603470,1735124009902,-500.0,0.00011287,2]
[346603471,1735124009912,-500.0,0.00011287,2]
[346603472,1735124009922,-2415.95,0.00011287,2]
[346603473,1735124009932,-1459.4,0.00011287,2]
[346603474,1735124009942,-500.0,0.00011287,2]
[346603475,1735124009952,-750.12,0.00011287,2]
[346603476,1735124009962,-500.0,0.00011287,2]
[346603477,1735124009972,-503.84,0.00011287,2]
[346603478,1735124009982,-500.0,0.00011287,2]
[346603479,1735124009992,-500.0,0.00011287,2]
[346603480,1735124010003,-597.35,0.00011287,2]
[346603481,1735124010012,-500.0,0.00011287,2]
[346603482,1735124010021,-3125.5,0.00011287,2]
[346603483,1735124010031,-9740.89,0.00011287,2]
[346603484,1735124010041,-1791.37,0.00011287,2]
[346603485,1735124010051,-500.0,0.00011287,2]
[346603486,1735124010061,-544.59,0.00011287,2]
[346603487,1735124010071,-1480.26,0.00011287,2]
[346603488,1735124010084,-2382.39,0.00011287,2]
[346603489,1735124010093,-545.41,0.00011287,2]
[346603490,1735124010103,-3850.84,0.00011287,2]
[346603491,1735124010113,-500.0,0.00011287,2]
[346603492,1735124010123,-3099.01,0.00011287,2]
[346603493,1735124010132,-1251.08,0.00011287,2]
[346603494,1735124010142,-500.0,0.00011287,2]
[346603495,1735124010152,-1210.33,0.00011287,2]
[346603496,1735124010162,-1763.17,0.00011287,2]
[346603497,1735124010172,-500.0,0.00011287,2]
[346603498,1735124010181,-2069.22,0.00011287,2]
[346603499,1735124010191,-500.0,0.00011287,2]
[346603500,1735124010201,-3442.62,0.00011287,2]
[346603501,1735124010211,-500.0,0.00011287,2]
[346603502,1735124010221,-3116.27,0.00011287,2]
[346603503,1735124010230,-1686.02,0.00011287,2]
[346603504,1735124010240,-504.43,0.00011287,2]
[346603505,1735124010249,-500.0,0.00011287,2]
[346603506,1735124010259,-969.87,0.00011287,2]
[346603507,1735124010269,-999.27,0.00011287,2]
[346603508,1735124010279,-917.88,0.00011287,2]
[346603509,1735124010289,-500.0,0.00011287,2]
[346603510,1735124010298,-680.31,0.00011287,2]
[346603511,1735124010308,-500.0,0.00011287,2]
[346603512,1735124010318,-2615.45,0.00011287,2]
[346603513,1735124010328,-500.0,0.00011287,2]
[346603514,1735124010338,-500.0,0.00011287,2]
[346603515,1735124010348,-1076.21,0.00011287,2]
[346603516,1735124010358,-1287.66,0.00011287,2]
[346603517,1735124010368,-518.82,0.00011287,2]
[346603518,1735124010379,-1147.79,0.00011287,2]
[346603519,1735124010389,-500.0,0.00011287,2]
[346603520,1735124010400,-500.0,0.00011287,2]
[346603521,1735124010410,-500.0,0.00011287,2]
[346603522,1735124010422,-729.57,0.00011287,2]
[346603523,1735124010432,-500.0,0.00011287,2]
[346603524,1735124010441,-153.221202,0.00011288,2]
[346603525,1735124010451,-1502.38284,0.00011288,2]
[346603526,1735124010462,-1533.855269,0.00011288,2]
[346603527,1735124010471,-500.0,0.00011288,2]
[346603528,1735124010480,-500.0,0.00011288,2]
[346603529,1735124010490,-177.1792,0.00011288,2]
[346603530,1735124010502,-676.89,0.00011288,2]
[346603531,1735124010512,-716.47,0.00011288,2]
[346603532,1735124010522,-154.238122,0.00011288,2]
[346603533,1735124010532,-551.85,0.00011288,2]
[346603534,1735124010542,-1052.78,0.00011288,2]
[346603535,1735124010551,-500.0,0.00011288,2]
[346603536,1735124010560,-732.02,0.00011288,2]
[346603537,1735124010570,-805.02,0.00011288,2]
[346603538,1735124010581,-697.15,0.00011288,2]
[346603539,1735124010591,-697.0,0.00011288,2]
[346603540,1735124010605,-539.3,0.00011288,2]
[346603541,1735124010615,-500.0,0.00011288,2]
[346603542,1735124010624,-500.0,0.00011288,2]
[346603543,1735124010634,-745.04,0.00011288,2]
[346603544,1735124010644,-500.0,0.00011288,2]
[346603545,1735124010653,-500.0,0.00011288,2]
[346603546,1735124010663,-903.2,0.00011288,2]
[346603547,1735124010673,-721.38,0.00011288,2]
[346603548,1735124010683,-723.99,0.00011288,2]
[346603549,1735124010693,-500.0,0.00011288,2]
[346603550,1735124010702,-156.50905929,0.00011288,2]
[346603551,1735124010712,-709.41,0.00011288,2]
[346603552,1735124010722,-705.13,0.00011288,2]
[346603553,1735124010731,-500.0,0.00011288,2]
[346603554,1735124010744,-500.0,0.00011288,2]
[346603555,1735124010753,-500.0,0.00011288,2]
[346603556,1735124010763,-500.0,0.00011288,2]
[346603557,1735124010772,-500.0,0.00011288,2]
[346603558,1735124010782,-1131.98,0.00011288,2]
[346603559,1735124010792,-500.0,0.00011288,2]
[346603560,1735124010801,-725.62,0.00011288,2]
[346603561,1735124010810,-525.72,0.00011288,2]
[346603562,1735124010820,-326.30752647,0.00011288,2]
[346603563,1735124010830,-500.0,0.00011288,2]
[346603564,1735124010840,-500.0,0.00011288,2]
[346603565,1735124010850,-730.72,0.00011288,2]
[346603566,1735124010860,-1070.9,0.00011288,2]
[346603567,1735124010871,-500.0,0.00011288,2]
[346603568,1735124010880,-562.56,0.00011288,2]
[346603569,1735124010890,-500.0,0.00011288,2]
[346603570,1735124010900,-1292.9,0.00011288,2]
[346603571,1735124010910,-611.15,0.00011288,2]
[346603572,1735124010920,-564.45,0.00011288,2]
[346603573,1735124010930,-500.0,0.00011288,2]
[346603574,1735124010940,-1241.48,0.00011288,2]
[346603575,1735124011212,-457.30520546,0.00011288,2]
[346603576,1735124011222,-926.32,0.00011288,2]
[346603577,1735124011232,-500.0,0.00011288,2]
[346603578,1735124011242,-685.43,0.00011288,2]
[346603579,1735124011252,-672.86,0.00011288,2]
[346603580,1735124011262,-500.0,0.00011288,2]
[346603581,1735124011272,-626.83,0.00011288,2]
[346603582,1735124011282,-1345.93,0.00011288,2]
[346603583,1735124011292,-1089.7,0.00011288,2]
[346603584,1735124011302,-500.0,0.00011288,2]
[346603585,1735124011312,-716.6,0.00011288,2]
[346603586,1735124011322,-7883.29,0.00011288,2]
[346603587,1735124011332,-1161.29,0.00011288,2]
[346603588,1735124011341,-1171.55,0.00011288,2]
[346603589,1735124011351,-801.16,0.00011288,2]
[346603590,1735124011360,-1215.48,0.00011288,2]
[346603591,1735124011370,-1150.96,0.00011288,2]
[346603592,1735124011380,-2469.89,0.00011288,2]
[346603593,1735124011390,-1114.57,0.00011288,2]
[346603594,1735124011400,-1787.54,0.00011288,2]
[346603595,1735124011409,-500.0,0.00011288,2]
[346603596,1735124011421,-2092.13,0.00011288,2]
[346603597,1735124011431,-5306.62,0.00011288,2]
[346603598,1735124011440,-2238.42,0.00011288,2]
[346603599,1735124011450,-847.89,0.00011288,2]
[346603600,1735124011461,-3139.07,0.00011288,2]
[346603601,1735124011471,-697.89,0.00011288,2]
[346603602,1735124011480,-1511.98,0.00011288,2]
[346603603,1735124011490,-3688.36,0.00011288,2]
[346603604,1735124011501,-1406.27,0.00011288,2]
[346603605,1735124011511,-2495.17,0.00011288,2]
[346603606,1735124011521,-849.55,0.00011288,2]
[346603607,1735124011532,-6914.7,0.00011288,2]
[346603608,1735124011541,-4144.9,0.00011288,2]
[346603609,1735124011552,-874.8,0.00011288,2]
[346603610,1735124011561,-7260.01,0.00011288,2]
[346603611,1735124011571,-1306.54,0.00011288,2]
[346603612,1735124011582,-1206.36,0.00011288,2]
[346603613,1735124011592,-1168.17,0.00011288,2]
[346603614,1735124011602,-2349.99,0.00011288,2]
[346603615,1735124011612,-1438.68,0.00011288,2]
[346603616,1735124011622,-43437.81,0.00011288,2]
[346603617,1735124011631,-1131.56,0.00011288,2]
[346603618,1735124011641,-1311.66,0.00011288,2]
[346603619,1735124011651,-2124.98,0.00011288,2]
[346603620,1735124011661,-10367.98,0.00011288,2]
[346603621,1735124011670,-856.68,0.00011288,2]
[346603622,1735124011679,-1105.62,0.00011288,2]
[346603623,1735124011689,-2001.96,0.00011288,2]
[346603624,1735124011699,-5827.41,0.00011288,2]
[346603625,1735124011708,-1216.4,0.00011288,2]
[346603626,1735124011718,-2998.6,0.00011288,2]
[346603627,1735124011727,-3041.71,0.00011288,2]
[346603628,1735124011737,-1530.99,0.00011288,2]
[346603629,1735124011747,-4055.75,0.00011288,2]
[346603630,1735124011756,-569.6,0.00011288,2]
[346603631,1735124011766,-1056.71,0.00011288,2]
[346603632,1735124011776,-7602.77,0.00011288,2]
[346603633,1735124011785,-1793.63,0.00011288,2]
[346603634,1735124011795,-3754.5,0.00011288,2]
[346603635,1735124011805,-500.0,0.00011288,2]
[346603636,1735124011815,-2035.37,0.00011288,2]
[346603637,1735124011824,-8203.8,0.00011288,2]
[346603638,1735124011836,-5375.49,0.00011288,2]
[346603639,1735124011845,-1968.75,0.00011288,2]
[346603640,1735124011855,-3917.65,0.00011288,2]
[346603641,1735124011865,-3799.95,0.00011288,2]
[346603642,1735124011875,-4323.49,0.00011288,2]
[346603643,1735124011885,-773.92,0.00011288,2]
[346603644,1735124011895,-5058.49,0.00011288,2]
[346603645,1735124011905,-5283.4,0.00011288,2]
[346603646,1735124011915,-40377.0,0.00011288,2]
[346603647,1735124011924,-1690.11,0.00011288,2]
[346603648,1735124011933,-1222.02,0.00011288,2]
[346603649,1735124011942,-3469.7,0.00011288,2]
[346603650,1735124011951,-4268.74,0.00011288,2]
[346603651,1735124011962,-1352.45,0.00011288,2]
[346603652,1735124011972,-3931.78,0.00011288,2]
[346603653,1735124011981,-1434.48,0.00011288,2]
[346603654,1735124011991,-6377.29,0.00011288,2]
[346603655,1735124012000,-1871.58,0.00011288,2]
[346603656,1735124012010,-4300.66,0.00011288,2]
[346603657,1735124012019,-1079.58,0.00011288,2]
[346603658,1735124012029,-2002.26,0.00011288,2]
[346603659,1735124012038,-556.9,0.00011288,2]
[346603660,1735124012048,-1374.95,0.00011288,2]
[346603661,1735124012057,-687.76,0.00011288,2]
[346603662,1735124012067,-7255.37,0.00011288,2]
[346603663,1735124012077,-975.22,0.00011288,2]
[346603664,1735124012088,-1373.89,0.00011288,2]
[346603665,1735124012098,-5580.34,0.00011288,2]
[346603666,1735124012108,-1241.75,0.00011288,2]
[346603667,1735124012118,-1282.83,0.00011288,2]
[346603668,1735124012128,-500.0,0.00011288,2]
[346603669,1735124012137,-500.0,0.00011289,2]
[346603670,1735124012147,-590.03,0.00011289,2]
[346603671,1735124012156,-500.0,0.00011289,2]
[346603672,1735124012165,-536.84,0.00011289,2]
[346603673,1735124012175,-500.0,0.00011289,2]
[346603674,1735124012184,-500.0,0.00011289,2]
[346603675,1735124012194,-500.0,0.00011289,2]
[346603676,1735124012204,-500.0,0.00011289,2]
[346603677,1735124012214,-500.0,0.00011289,2]
[346603678,1735124012223,-889.26,0.00011289,2]
[346603679,1735124012233,-500.0,0.00011289,2]
[346603680,1735124012242,-623.26,0.00011289,2]
[346603681,1735124012251,-727.06,0.00011289,2]
[346603682,1735124012261,-500.0,0.00011289,2]
[346603683,1735124012270,-500.0,0.00011289,2]
[346603684,1735124012280,-528.94,0.00011289,2]
[346603685,1735124012289,-654.6,0.00011289,2]
[346603686,1735124012299,-855.2,0.00011289,2]
[346603687,1735124012308,-500.0,0.00011289,2]
[346603688,1735124012318,-550.85,0.00011289,2]
[346603689,1735124012327,-500.0,0.00011289,2]
[346603690,1735124012337,-500.0,0.00011289,2]
[346603691,1735124012347,-577.68,0.00011289,2]
[346603692,1735124012356,-558.83,0.00011289,2]
[346603693,1735124012366,-523.37,0.00011289,2]
[346603694,1735124012376,-500.0,0.00011289,2]
[346603695,1735124012385,-514.4,0.00011289,2]
[346603696,1735124012395,-500.0,0.00011289,2]
[346603697,1735124012405,-516.39,0.00011289,2]
[346603698,1735124012414,-500.0,0.00011289,2]
[346603699,1735124012428,-500.0,0.00011289,2]
[346603700,1735124012437,-500.0,0.00011289,2]
[346603701,1735124012446,-1019.21,0.00011289,2]
[346603702,1735124012456,-758.05,0.00011289,2]
[346603703,1735124012466,-578.92,0.00011289,2]
[346603704,1735124012475,-500.0,0.00011289,2]
[346603705,1735124012485,-533.72,0.00011289,2]
[346603706,1735124012494,-500.0,0.00011289,2]
[346603707,1735124012505,-500.0,0.00011289,2]
[346603708,1735124012516,-500.0,0.00011289,2]
[346603709,1735124012526,-500.0,0.00011289,2]
[346603710,1735124012535,-500.0,0.00011289,2]
[346603711,1735124012544,-500.0,0.00011289,2]
[346603712,1735124012555,-680.69,0.00011289,2]
[346603713,1735124012564,-500.0,0.00011289,2]
[346603714,1735124012573,-500.0,0.00011289,2]
[346603715,1735124012584,-500.0,0.00011289,2]
[346603716,1735124012594,-500.0,0.00011289,2]
[346603717,1735124012603,-500.0,0.00011289,2]
[346603718,1735124012616,-500.0,0.00011289,2]
[346603719,1735124012626,-899.01,0.00011289,2]
[346603720,1735124012636,-500.0,0.00011289,2]
[346603721,1735124012645,-500.0,0.00011289,2]
[346603722,1735124012654,-500.0,0.00011289,2]
[346603723,1735124012664,-500.0,0.00011289,2]
[346603724,1735124012674,-1128.34,0.00011289,2]
[346603725,1735124012683,-500.0,0.00011289,2]
[346603726,1735124012692,-861.77,0.00011289,2]
[346603727,1735124012701,-664.24,0.00011289,2]
[346603728,1735124012710,-500.0,0.00011289,2]
[346603729,1735124012720,-500.0,0.00011289,2]
[346603730,1735124012729,-1651.33,0.00011289,2]
[346603731,1735124012738,-595.16,0.00011289,2]
[346603732,1735124012748,-1183.03,0.00011289,2]
[346603733,1735124012758,-500.0,0.00011289,2]
[346603734,1735124012768,-741.31,0.00011289,2]
[346603735,1735124012778,-500.0,0.00011289,2]
[346603736,1735124012788,-1297.69,0.00011289,2]
[346603737,1735124012797,-2725.44,0.00011289,2]
[346603738,1735124012807,-1159.71,0.00011289,2]
[346603739,1735124012816,-1142.25,0.00011289,2]
[346603740,1735124012826,-1427.37,0.00011289,2]
[346603741,1735124012837,-507.68,0.00011289,2]
[346603742,1735124012847,-812.86,0.00011289,2]
[346603743,1735124012856,-500.0,0.00011289,2]
[346603744,1735124012865,-500.0,0.00011289,2]
[346603745,1735124012875,-1108.97,0.00011289,2]
[346603746,1735124012884,-757.33,0.00011289,2]
[346603747,1735124012894,-500.0,0.00011289,2]
[346603748,1735124012903,-1679.76,0.00011289,2]
[346603749,1735124012913,-500.0,0.00011289,2]
[346603750,1735124012923,-670.49,0.00011289,2]
[346603751,1735124012932,-500.0,0.00011289,2]
[346603752,1735124012942,-673.55,0.00011289,2]
[346603753,1735124012952,-500.0,0.00011289,2]
[346603754,1735124012961,-500.0,0.00011289,2]
[346603755,1735124012971,-881.61,0.00011289,2]
[346603756,1735124012981,-659.9,0.00011289,2]
[346603757,1735124012990,-500.0,0.00011289,2]
[346603758,1735124013000,-500.0,0.00011289,2]
[346603759,1735124013009,-500.0,0.00011289,2]
[346603760,1735124013019,-1334.65,0.00011289,2]
[346603761,1735124013029,-809.37,0.00011289,2]
[346603762,1735124013038,-500.0,0.00011289,2]
[346603763,1735124013048,-500.0,0.00011289,2]
[346603764,1735124013057,-1767.33,0.00011289,2]
[346603765,1735124013067,-606.64,0.00011289,2]
[346603766,1735124013077,-500.0,0.00011289,2]
[346603767,1735124013088,-500.0,0.00011289,2]
[346603768,1735124013100,-1307.03,0.00011289,2]
[346603769,1735124013110,-1231.6,0.00011289,2]
[346603770,1735124013120,-500.0,0.00011289,2]
[346603771,1735124013131,-500.0,0.00011289,2]
[346603772,1735124013141,-687.97,0.00011289,2]
[346603773,1735124013151,-552.67,0.00011289,2]
[346603774,1735124013160,-500.0,0.00011289,2]
[346603775,1735124013170,-1249.86,0.00011289,2]
[346603776,1735124013180,-500.0,0.00011289,2]
[346603777,1735124013190,-1284.88,0.00011289,2]
[346603778,1735124013200,-1100.64,0.00011289,2]
[346603779,1735124013210,-500.0,0.00011289,2]
[346603780,1735124013220,-850.42,0.00011289,2]
[346603781,1735124013230,-500.0,0.00011289,2]
[346603782,1735124013240,-500.0,0.00011289,2]
[346603783,1735124013250,-994.82,0.00011289,2]
[346603784,1735124013260,-500.0,0.00011289,2]
[346603785,1735124013270,-1496.34,0.00011289,2]
[346603786,1735124013279,-817.31,0.00011289,2]
[346603787,1735124013289,-712.14,0.00011289,2]
[346603788,1735124013299,-1209.55,0.00011289,2]
[346603789,1735124013309,-1201.37,0.00011289,2]
[346603790,1735124013318,-500.0,0.00011289,2]
[346603791,1735124013329,-500.0,0.00011289,2]
[346603792,1735124013339,-513.01,0.00011289,2]
[346603793,1735124013348,-564.37,0.00011289,2]
[346603794,1735124013358,-1231.95,0.00011289,2]
[346603795,1735124013368,-1142.83,0.00011289,2]
[346603796,1735124013377,-770.51,0.00011289,2]
[346603797,1735124013386,-548.91,0.00011289,2]
[346603798,1735124013395,-1081.6,0.00011289,2]
[346603799,1735124013405,-1858.46,0.00011289,2]
[346603800,1735124013415,-500.0,0.00011289,2]
[346603801,1735124013429,-500.0,0.00011289,2]
[346603802,1735124013439,-1306.98,0.00011289,2]
[346603803,1735124013448,-500.0,0.00011289,2]
[346603804,1735124013459,-500.0,0.00011289,2]
[346603805,1735124013468,-2452.91,0.00011289,2]
[346603806,1735124013478,-1048.75,0.00011289,2]
[346603807,1735124013487,-1263.71,0.00011289,2]
[346603808,1735124013496,-500.0,0.00011289,2]
[346603809,1735124013507,-604.41,0.00011289,2]
[346603810,1735124013517,-500.0,0.00011289,2]
[346603811,1735124013527,-1520.77,0.00011289,2]
[346603812,1735124013536,-1970.0,0.00011289,2]
[346603813,1735124013546,-823.95,0.00011289,2]
[346603814,1735124013555,-500.0,0.00011289,2]
[346603815,1735124013564,-500.0,0.00011289,2]
[346603816,1735124013574,-1359.23,0.00011289,2]
[346603817,1735124013668,-1156.27,0.00011289,2]
[346603818,1735124013678,-500.0,0.00011289,2]
[346603819,1735124013687,-500.0,0.00011289,2]
[346603820,1735124013696,-513.31,0.00011289,2]
[346603821,1735124013706,-639.03,0.00011289,2]
[346603822,1735124013716,-1839.64,0.00011289,2]
[346603823,1735124013725,-1260.21,0.00011289,2]
[346603824,1735124013734,-500.0,0.00011289,2]
[346603825,1735124013743,-1817.61,0.00011289,2]
[346603826,1735124013752,-500.0,0.00011289,2]
[346603827,1735124013762,-950.77,0.00011289,2]
[346603828,1735124013772,-500.0,0.00011289,2]
[346603829,1735124013781,-1170.85,0.00011289,2]
[346603830,1735124013790,-500.0,0.00011289,2]
[346603831,1735124013800,-311.88938428,0.00011289,2]
[346603832,1735124013809,-1838.6,0.00011289,2]
[346603833,1735124013819,-500.0,0.00011289,2]
[346603834,1735124013828,-2502.46,0.00011289,2]
[346603835,1735124013838,-1400.43,0.00011289,2]
[346603836,1735124013848,-629.91186705,0.00011289,2]
[346603837,1735124013857,-801.56,0.00011289,2]
[346603838,1735124013867,-500.0,0.00011289,2]
[346603839,1735124013876,-1319.87,0.00011289,2]
[346603840,1735124013885,-1580.81,0.00011289,2]
[346603841,1735124013894,-1080.44,0.00011289,2]
[346603842,1735124013904,-500.0,0.00011289,2]
[346603843,1735124013913,-538.39,0.00011289,2]
[346603844,1735124013923,-697.81,0.00011289,2]
[346603845,1735124013933,-500.0,0.00011289,2]
[346603846,1735124013942,-1539.71,0.00011289,2]
[346603847,1735124013951,-548.66,0.00011289,2]
[346603848,1735124013961,-1862.08,0.00011289,2]
[346603849,1735124013971,-2758.57,0.00011289,2]
[346603850,1735124013980,-1444.61,0.00011289,2]
[346603851,1735124013990,-607.64,0.00011289,2]
[346603852,1735124014000,-1802.49,0.00011289,2]
[346603853,1735124014010,-500.0,0.00011289,2]
[346603854,1735124014021,-1569.27,0.00011289,2]
[346603855,1735124014031,-500.0,0.00011289,2]
[346603856,1735124014040,-1142.88,0.00011289,2]
[346603857,1735124014050,-672.98,0.00011289,2]
[346603858,1735124014059,-1200.5,0.00011289,2]
[346603859,1735124014069,-657.26,0.00011289,2]
[346603860,1735124014079,-500.0,0.00011289,2]
[346603861,1735124014090,-524.08,0.00011289,2]
[346603862,1735124014100,-1063.48,0.00011289,2]
[346603863,1735124014111,-500.0,0.00011289,2]
[346603864,1735124014121,-500.0,0.00011289,2]
[346603865,1735124014131,-1068.24,0.00011289,2]
[346603866,1735124014141,-1438.42,0.00011289,2]
[346603867,1735124014151,-500.0,0.00011289,2]
[346603868,1735124014161,-871.52,0.00011289,2]